fUSD/lending_fUSD_20260314
["ID","MTS","AMOUNT","RATE_DAILY","PERIOD"]
[408363574,1773496255913,-300.0,0.0004282,2]
[408363575,1773496255922,-300.0,0.0004282,2]
[408363576,1773496255931,-416.45217614,0.0004282,2]
[408363577,1773496255939,-300.0,0.0004282,2]
[408363578,1773496255948,-300.0,0.0004282,2]
[408363579,1773496255957,-300.0,0.0004282,2]
[408363580,1773496255966,-300.0,0.0004282,2]
[408363581,1773496255975,-300.0,0.0004282,2]
[408363582,1773496255983,-1085.86135591,0.0004282,2]
[408363583,1773496255992,-300.0,0.0004282,2]
[408363584,1773496256001,-300.0,0.0004282,2]
[408363585,1773496256010,-300.0,0.0004282,2]
[408363586,1773496256019,-300.0,0.0004282,2]
[408363587,1773496256028,-300.0,0.0004282,2]
[408363588,1773496256038,-300.0,0.0004282,2]
[408363589,1773496256047,-300.0,0.0004282,2]
[408363590,1773496256056,-300.0,0.0004282,2]
[408363591,1773496256065,-300.0,0.0004282,2]
[408363592,1773496256074,-300.0,0.0004282,2]
[408363593,1773496256083,-300.0,0.0004282,2]
[408363594,1773496256092,-300.0,0.0004282,2]
[408363595,1773496256101,-300.0,0.0004282,2]
[408363596,1773496256110,-300.0,0.0004282,2]
[408363597,1773496256118,-300.0,0.0004282,2]
[408363598,1773496256127,-300.0,0.0004282,2]
[408363599,1773496256136,-300.0,0.0004282,2]
[408363600,1773496256146,-303.20588711,0.0004282,2]
[408363601,1773496256156,-300.0,0.0004282,2]
[408363602,1773496256165,-300.0,0.0004282,2]
[408363603,1773496256174,-1050.14169216,0.0004282,2]
[408363604,1773496256183,-307.09317041,0.0004282,2]
[408363605,1773496256193,-300.0,0.0004282,2]
[408363606,1773496256202,-857.47271976,0.0004282,2]
[408363607,1773496256211,-300.0,0.0004282,2]
[408363608,1773496256223,-300.0,0.0004282,2]
[408363609,1773496256232,-300.0,0.0004282,2]
[408363610,1773496256241,-300.0,0.0004282,2]
[408363611,1773496256251,-308.36419653,0.0004282,2]
[408363612,1773496256260,-300.0,0.0004282,2]
[408363613,1773496256269,-300.0,0.0004282,2]
[408363614,1773496256282,-460.10536322,0.0004282,2]
[408363615,1773496256291,-300.0,0.0004282,2]
[408363616,1773496256300,-300.0,0.0004282,2]
[408363617,1773496256310,-300.0,0.0004282,2]
[408363618,1773496256319,-300.0,0.0004282,2]
[408363619,1773496256328,-448.21273408,0.0004282,2]
[408363620,1773496256338,-300.0,0.0004282,2]
[408363621,1773496256348,-300.0,0.0004282,2]
[408363622,1773496256357,-302.45218568,0.0004282,2]
[408363623,1773496256367,-300.0,0.0004282,2]
[408363624,1773496256377,-300.0,0.0004282,2]
[408363625,1773496256387,-300.0,0.0004282,2]
[408363626,1773496256397,-520.42881649,0.0004282,2]
[408363627,1773496256407,-307.31607308,0.0004282,2]
[408363628,1773496256417,-300.0,0.0004282,2]
[408363629,1773496256427,-300.0,0.0004282,2]
[408363630,1773496256436,-300.0,0.0004282,2]
[408363631,1773496256445,-300.0,0.0004282,2]
[408363632,1773496256455,-416.45217614,0.0004282,2]
[408363633,1773496256465,-300.0,0.0004282,2]
[408363634,1773496256474,-300.0,0.0004282,2]
[408363635,1773496256483,-300.0,0.0004282,2]
[408363636,1773496256492,-300.0,0.0004282,2]
[408363637,1773496256502,-1085.86135591,0.0004282,2]
[408363638,1773496256512,-300.0,0.0004282,2]
[408363639,1773496256521,-300.0,0.0004282,2]
[408363640,1773496256530,-300.0,0.0004282,2]
[408363641,1773496256539,-300.0,0.0004282,2]
[408363642,1773496256548,-368.43849163,0.0004282,2]
[408363643,1773496256558,-300.0,0.0004282,2]
[408363644,1773496256567,-300.0,0.0004282,2]
[408363645,1773496256576,-300.0,0.0004282,2]
[408363646,1773496256586,-300.0,0.0004282,2]
[408363647,1773496256595,-300.0,0.0004282,2]
[408363648,1773496256605,-300.0,0.0004282,2]
[408363649,1773496256614,-300.0,0.0004282,2]
[408363650,1773496256623,-300.0,0.0004282,2]
[408363651,1773496256633,-300.0,0.0004282,2]
[408363652,1773496256642,-300.0,0.0004282,2]
[408363653,1773496256651,-300.0,0.0004282,2]
[408363654,1773496256660,-303.20588711,0.0004282,2]
[408363655,1773496256669,-300.0,0.0004282,2]
[408363656,1773496256679,-300.0,0.0004282,2]
[408363657,1773496256688,-1050.14169216,0.0004282,2]
[408363658,1773496256697,-307.09317041,0.0004282,2]
[408363659,1773496256707,-372.46213178,0.0004282,2]
[408363660,1773496256716,-857.47271976,0.0004282,2]
[408363661,1773496256725,-300.62951713,0.0004282,2]
[408363662,1773496256735,-300.0,0.0004282,2]
[408363663,1773496256744,-300.0,0.0004282,2]
[408363664,1773496256753,-300.0,0.0004282,2]
[408363665,1773496256762,-308.36419653,0.0004282,2]
[408363666,1773496256772,-300.0,0.0004282,2]
[408363667,1773496256781,-300.0,0.0004282,2]
[408363668,1773496256792,-300.0,0.0004282,2]
[408363669,1773496256801,-460.10536322,0.0004282,2]
[408363670,1773496256810,-300.0,0.0004282,2]
[408363671,1773496256819,-300.0,0.0004282,2]
[408363672,1773496256829,-300.0,0.0004282,2]
[408363673,1773496256838,-448.21273408,0.0004282,2]
[408363674,1773496256847,-300.0,0.0004282,2]
[408363675,1773496256856,-300.0,0.0004282,2]
[408363676,1773496256865,-302.45218568,0.0004282,2]
[408363677,1773496256875,-300.0,0.0004282,2]
[408363678,1773496256884,-300.0,0.0004282,2]
[408363679,1773496256893,-520.42881649,0.0004282,2]
[408363680,1773496256902,-300.0,0.0004282,2]
[408363681,1773496256912,-307.31607308,0.0004282,2]
[408363682,1773496256921,-300.0,0.0004282,2]
[408363683,1773496256930,-300.0,0.0004282,2]
[408363684,1773496256939,-300.0,0.0004282,2]
[408363685,1773496256948,-300.0,0.0004282,2]
[408363686,1773496256958,-416.45217614,0.0004282,2]
[408363687,1773496256967,-300.0,0.0004282,2]
[408363688,1773496256976,-300.0,0.0004282,2]
[408363689,1773496256986,-300.0,0.0004282,2]
[408363690,1773496256995,-1085.86135591,0.0004282,2]
[408363691,1773496257005,-300.0,0.0004282,2]
[408363692,1773496257015,-300.0,0.0004282,2]
[408363693,1773496257024,-300.0,0.0004282,2]
[408363694,1773496257034,-300.0,0.0004282,2]
[408363695,1773496257046,-300.0,0.0004282,2]
[408363696,1773496257056,-300.0,0.0004282,2]
[408363697,1773496257066,-300.0,0.0004282,2]
[408363698,1773496257075,-300.0,0.0004282,2]
[408363699,1773496257085,-300.0,0.0004282,2]
[408363700,1773496257094,-300.0,0.0004282,2]
[408363701,1773496257104,-300.0,0.0004282,2]
[408363702,1773496257114,-300.0,0.0004282,2]
[408363703,1773496257125,-300.0,0.0004282,2]
[408363704,1773496257134,-300.0,0.0004282,2]
[408363705,1773496257145,-300.0,0.0004282,2]
[408363706,1773496257158,-300.0,0.0004282,2]
[408363707,1773496257167,-303.20588711,0.0004282,2]
[408363708,1773496257177,-300.0,0.0004282,2]
[408363709,1773496257187,-300.0,0.0004282,120]
[408363710,1773496257197,-300.0,0.0004282,120]
[408363711,1773496257206,-300.0,0.0004282,120]
[408363712,1773496257215,-300.0,0.0004282,120]
[408363713,1773496257227,-300.0,0.0004282,120]
[408363714,1773496257237,-300.0,0.0004282,2]
[408363715,1773496257247,-1050.14169216,0.0004282,2]
[408363716,1773496257256,-307.09317041,0.0004282,2]
[408363717,1773496257266,-857.47271976,0.0004282,2]
[408363718,1773496257275,-300.0,0.0004282,2]
[408363719,1773496257285,-300.0,0.0004282,2]
[408363720,1773496257295,-300.0,0.0004282,2]
[408363721,1773496257305,-308.36419653,0.0004282,2]
[408363722,1773496257315,-300.0,0.0004282,2]
[408363723,1773496257325,-300.0,0.0004282,2]
[408363724,1773496257335,-558.00781757,0.0004282,2]
[408363725,1773496257346,-460.10536322,0.0004282,2]
[408363726,1773496257356,-300.0,0.0004282,2]
[408363727,1773496257366,-300.0,0.0004282,2]
[408363728,1773496257375,-300.0,0.0004282,2]
[408363729,1773496257385,-448.21273408,0.0004282,2]
[408363730,1773496257396,-300.0,0.0004282,2]
[408363731,1773496257405,-300.0,0.0004282,2]
[408363732,1773496257415,-302.45218568,0.0004282,2]
[408363733,1773496257425,-300.0,0.0004282,2]
[408363734,1773496257434,-300.0,0.0004282,2]
[408363735,1773496257443,-300.0,0.0004282,2]
[408363736,1773496257454,-520.42881649,0.0004282,2]
[408363737,1773496257464,-307.31607308,0.0004282,2]
[408363738,1773496257473,-300.0,0.0004282,2]
[408363739,1773496257482,-300.0,0.0004282,2]
[408363740,1773496257492,-300.0,0.0004282,2]
[408363741,1773496257501,-300.0,0.0004282,2]
[408363742,1773496257511,-416.45217614,0.0004282,2]
[408363743,1773496257520,-300.0,0.0004282,2]
[408363744,1773496257530,-300.0,0.0004282,2]
[408363745,1773496257541,-300.0,0.0004282,2]
[408363746,1773496257550,-1085.86135591,0.0004282,2]
[408363747,1773496257560,-300.0,0.0004282,2]
[408363748,1773496257570,-300.0,0.0004282,2]
[408363749,1773496257579,-300.0,0.0004282,2]
[408363750,1773496257591,-300.0,0.0004282,2]
[408363751,1773496257600,-300.0,0.0004282,2]
[408363752,1773496257611,-300.0,0.0004282,2]
[408363753,1773496257620,-300.0,0.0004282,2]
[408363754,1773496257630,-300.0,0.0004282,2]
[408363755,1773496257640,-300.0,0.0004282,2]
[408363756,1773496257650,-300.0,0.0004282,2]
[408363757,1773496257659,-300.0,0.0004282,2]
[408363758,1773496257669,-300.0,0.0004282,2]
[408363759,1773496257679,-300.0,0.0004282,2]
[408363760,1773496257689,-300.0,0.0004282,2]
[408363761,1773496257699,-300.0,0.0004282,2]
[408363762,1773496257708,-300.0,0.0004282,2]
[408363763,1773496257717,-303.20588711,0.0004282,2]
[408363764,1773496257727,-300.0,0.0004282,2]
[408363765,1773496257736,-300.0,0.0004282,120]
[408363766,1773496257747,-346.50421843,0.0004282,2]
[408363767,1773496257756,-1050.14169216,0.0004282,2]
[408363768,1773496257765,-307.09317041,0.0004282,2]
[408363769,1773496257775,-857.47271976,0.0004282,2]
[408363770,1773496257784,-598.38990375,0.0004282,2]
[408363771,1773496257793,-446.10394832,0.0004282,2]
[408363772,1773496257802,-513.51165296,0.0004282,2]
[408363773,1773496257815,-308.36419653,0.0004282,2]
[408363774,1773496257825,-300.0,0.0004282,2]
[408363775,1773496257835,-300.0,0.0004282,2]
[408363776,1773496257845,-460.10536322,0.0004282,2]
[408363777,1773496257855,-300.0,0.0004282,2]
[408363778,1773496257865,-300.0,0.0004282,2]
[408363779,1773496257874,-300.0,0.0004282,2]
[408363780,1773496257884,-448.21273408,0.0004282,2]
[408363781,1773496257893,-300.0,0.0004282,2]
[408363782,1773496257903,-300.0,0.0004282,2]
[408363783,1773496257912,-302.45218568,0.0004282,2]
[408363784,1773496257921,-498.63210708,0.0004282,2]
[408363785,1773496257931,-300.0,0.0004282,2]
[408363786,1773496257941,-300.0,0.0004282,2]
[408363787,1773496257950,-520.42881649,0.0004282,2]
[408363788,1773496257961,-307.31607308,0.0004282,2]
[408363789,1773496257971,-300.0,0.0004282,2]
[408363790,1773496257981,-300.0,0.0004282,2]
[408363791,1773496257990,-300.0,0.0004282,2]
[408363792,1773496258000,-300.0,0.0004282,2]
[408363793,1773496258010,-416.45217614,0.0004282,2]
[408363794,1773496258020,-300.0,0.0004282,2]
[408363795,1773496258030,-300.0,0.0004282,2]
[408363796,1773496258040,-151.0,0.00042821,120]
[408363797,1773496258049,-197.334425,0.00042821,120]
[408363798,1773496258059,-197.334425,0.00042821,120]
[408363799,1773496258069,-197.334425,0.00042821,120]
[408363800,1773496258079,-197.334416,0.00042821,120]
[408363801,1773496258088,-154.35303,0.00042821,60]
[408363802,1773496258099,-1199.5713,0.00042864,2]
[408363803,1773496258109,-983.51,0.0004287,7]
[408363804,1773496258119,-214.0,0.00043,7]
[408363805,1773496258128,-1729.92369316,0.00043,2]
[408363806,1773496258138,-159.69,0.000431,30]
[408363807,1773496258150,-281.21,0.000431,30]
[408363808,1773496258160,-154.1201709,0.00043291,2]
[408363809,1773496258170,-2914.373,0.00043535,2]
[408363810,1773496258180,-8506.72021269,0.00043589,15]
[408363811,1773496258190,-1384.0,0.0004365,60]
[408363812,1773496258200,-154.2,0.00043674,30]
[408363813,1773496258210,-160.0,0.000438,120]
[408363814,1773496258220,-156.6071307,0.00043813,3]
[408363815,1773496258230,-1199.5713,0.00043936,2]
[408363816,1773496258240,-563.956309,0.00044,57]
[408363817,1773496258249,-2823.75,0.00044,14]
[408363818,1773496258259,-175.4254519,0.00044,120]
[408363819,1773496258268,-274.9866239,0.00044,120]
[408363820,1773496258278,-150.2368778,0.00044,30]
[408363821,1773496258287,-534.86407713,0.00044053,89]
[408363822,1773496258297,-156.6071307,0.00044087,3]
[408363823,1773496258306,-175.6827496,0.000441,10]
[408363824,1773496258316,-507.37414647,0.00044169,90]
[408363825,1773496258326,-39512.53,0.0004426,120]
[408363826,1773496258337,-156.6071307,0.00044361,3]
[408363827,1773496258347,-1033.25968328,0.0004444,120]
[408363828,1773496258358,-156.6071307,0.00044635,3]
[408363829,1773496258368,-363.5740728,0.00044639,16]
[408363830,1773496258378,-150.0,0.00044827,30]
[408363831,1773496258388,-150.0,0.00044827,30]
[408363832,1773496258398,-150.0,0.00044827,30]
[408363833,1773496258407,-362.4822092,0.000449,30]
[408363834,1773496258417,-811.60344454,0.000449,2]
[408363835,1773496258427,-156.6071307,0.00044909,3]
[408363836,1773496258436,-151.5,0.00044956,2]
[408363837,1773496258445,-151.0,0.00044997,120]
[408363838,1773496258457,-500.0,0.00044999,120]
[408363839,1773496258467,-500.0,0.00044999,120]
[408363840,1773496258476,-20265.95860118,0.00045,120]
[408363841,1773496258488,-200.29664846,0.00045,120]
[408363842,1773496258498,-258.24881237,0.00045,30]
[408363843,1773496258508,-170.12024072,0.00045,120]
[408363844,1773496258517,-456.37591491,0.00045,120]
[408363845,1773496258527,-610.87588769,0.00045,10]
[408363846,1773496258536,-655.02686129,0.00045,2]
[408363847,1773496258546,-163.82441446,0.00045,10]
[408363848,1773496258556,-506.68568652,0.00045,10]
[408363849,1773496258565,-845.87990731,0.00045,2]
[408363850,1773496258579,-3841.44,0.00045,120]
[408363851,1773496258588,-219.91785916,0.00045,30]
[408363852,1773496258597,-281.22,0.00045,30]
[408363853,1773496258607,-200.0,0.00045,120]
[408363854,1773496258616,-1384.0,0.00045,60]
[408363855,1773496258625,-94997.34324183,0.00045,120]
[408363856,1773496258635,-18630.36,0.00045,120]
[408363857,1773496258644,-1199.5713,0.00045007,2]
[408363858,1773496258653,-151.0,0.00045068,120]
[408363859,1773496258662,-151.0,0.00045068,120]
[408363860,1773496258671,-151.0,0.00045068,120]
[408363861,1773496258680,-151.0,0.00045068,120]
[408363862,1773496258690,-151.0,0.00045068,120]
[408363863,1773496258699,-151.0,0.00045068,120]
[408363864,1773496258709,-227.572345,0.00045068,120]
[408363865,1773496258719,-162.25663,0.00045068,120]
[408363866,1773496258729,-151.0,0.00045068,120]
[408363867,1773496258738,-151.0,0.00045068,120]
[408363868,1773496258747,-151.0,0.00045068,120]
[408363869,1773496258757,-151.0,0.00045068,120]
[408363870,1773496258767,-151.0,0.00045068,120]
[408363871,1773496258776,-151.0,0.00045068,120]
[408363872,1773496258786,-151.0,0.00045068,120]
[408363873,1773496258795,-151.0,0.00045068,120]
[408363874,1773496258805,-151.0,0.00045068,120]
[408363875,1773496258815,-151.0,0.00045068,120]
[408363876,1773496258825,-154.349988,0.00045068,120]
[408363877,1773496258834,-203.141724,0.00045068,30]
[408363878,1773496258843,-838.13,0.000451,30]
[408363879,1773496258853,-2000.0,0.000451,2]
[408363880,1773496258863,-500.0,0.00045162,120]
[408363881,1773496258872,-2021663.32,0.00045162,30]
[408363882,1773496258882,-156.6071307,0.00045183,3]
[408363883,1773496258892,-3886.38039427,0.00045357,28]
[408363884,1773496258902,-156.6071307,0.00045457,3]
[408363885,1773496258911,-4886.88676642,0.0004557,103]
[408363886,1773496258920,-156.6071307,0.00045731,3]
[408363887,1773496258930,-150.0,0.00045823,30]
[408363888,1773496258939,-762.49788835,0.00045849,106]
[408363889,1773496258949,-824.3,0.00045887,120]
[408363890,1773496258959,-307.09265433,0.00046,2]
[408363891,1773496258968,-1951.72926655,0.00046,30]
[408363892,1773496258977,-550.0,0.00046,120]
[408363893,1773496258987,-659.5501196,0.00046,120]
[408363894,1773496258996,-302.17170593,0.00046,120]
[408363895,1773496259006,-500.0,0.00046,120]
[408363896,1773496259015,-156.6071307,0.00046005,3]
[408363897,1773496259025,-150.0,0.00046072,30]
[408363898,1773496259034,-154.2,0.00046092,30]
[408363899,1773496259044,-184.27993429,0.0004614,2]
[408363900,1773496259053,-683.25075469,0.00046203,2]
[408363901,1773496259063,-156.6071307,0.00046279,3]
[408363902,1773496259072,-350.0,0.00046344,9]
[408363903,1773496259082,-1384.0,0.0004635,60]
[408363904,1773496259092,-150.0,0.00046487,30]
[408363905,1773496259101,-156.6071307,0.00046553,3]
[408363906,1773496259111,-1071.4,0.00046569,120]
[408363907,1773496259120,-2581.65542262,0.00046602,120]
[408363908,1773496259130,-350.0,0.00046622,9]
[408363909,1773496259139,-194.25384285,0.0004663,30]
[408363910,1773496259152,-500.0,0.0004663,30]
[408363911,1773496259162,-500.0,0.0004663,60]
[408363912,1773496259172,-1075.20604322,0.00046682,50]
[408363913,1773496259182,-1113.34520623,0.00046682,50]
[408363914,1773496259195,-1003.28625469,0.00046682,50]
[408363915,1773496259207,-1132.71962551,0.00046682,50]
[408363916,1773496259216,-1130.27900547,0.00046682,50]
[408363917,1773496259226,-1098.52225361,0.00046682,50]
[408363918,1773496259238,-1007.64512487,0.00046682,50]
[408363919,1773496259249,-1051.3864617,0.00046682,50]
[408363920,1773496259259,-1073.08815659,0.00046682,50]
[408363921,1773496259270,-1099.42682336,0.00046682,50]
[408363922,1773496259281,-1068.40305116,0.00046682,50]
[408363923,1773496259426,-1048.26612187,0.00046682,50]
[408363924,1773496259437,-1092.9431789,0.00046682,50]
[408363925,1773496259447,-1149.3730978,0.00046682,50]
[408363926,1773496259456,-1049.13083862,0.00046682,50]
[408363927,1773496259467,-1101.9154055,0.00046682,50]
[408363928,1773496259476,-1146.25546512,0.00046682,50]
[408363929,1773496259486,-1059.52311092,0.00046682,50]
[408363930,1773496259495,-1119.6130177,0.00046682,50]
[408363931,1773496259505,-1034.5247688,0.00046682,50]
[408363932,1773496259514,-1000.59830255,0.00046682,50]
[408363933,1773496259526,-1000.73755186,0.00046682,50]
[408363934,1773496259535,-1068.10032839,0.00046682,50]
[408363935,1773496259544,-1083.28715948,0.00046682,50]
[408363936,1773496259553,-1129.04243842,0.00046682,50]
[408363937,1773496259563,-1092.37658726,0.00046682,50]
[408363938,1773496259572,-1033.94559605,0.00046682,50]
[408363939,1773496259582,-1323.07203175,0.00046682,50]
[408363940,1773496259591,-8506.72021269,0.000467,15]
[408363941,1773496259600,-85267.44343702,0.000468,120]
[408363942,1773496259609,-838.13,0.000468,30]
[408363943,1773496259618,-150.0,0.0004682,30]
[408363944,1773496259627,-156.6071307,0.00046827,3]
[408363945,1773496259637,-748.86666402,0.000469,120]
[408363946,1773496259647,-350.0,0.0004698,9]
[408363947,1773496259657,-158.77417423,0.00047,120]
[408363948,1773496259666,-162.73677074,0.00047,120]
[408363949,1773496259675,-838.13,0.00047,30]
[408363950,1773496259685,-156.6071307,0.00047101,3]
[408363951,1773496259694,-5112.02109571,0.00047103,112]
[408363952,1773496259704,-1071.4,0.00047251,120]
[408363953,1773496259714,-350.0,0.00047259,9]
[408363954,1773496259723,-2000.0,0.00047318,4]
[408363955,1773496259731,-150.0,0.00047318,30]
[408363956,1773496259741,-811.60344454,0.0004735,2]
[408363957,1773496259752,-156.6071307,0.00047375,3]
[408363958,1773496259762,-500.0,0.00047403,120]
[408363959,1773496259771,-1888.35920065,0.000475,10]
[408363960,1773496259781,-212.85074752,0.00047589,4]
[408363961,1773496259790,-2823.75,0.000476,14]
[408363962,1773496259800,-304.0,0.000476,30]
[408363963,1773496259809,-995.0,0.000476,30]
[408363964,1773496259819,-311.0,0.000476,30]
[408363965,1773496259829,-121375.9785008,0.00047602,30]
[408363966,1773496259838,-301.96369123,0.00047602,2]
[408363967,1773496259848,-536.39569752,0.00047602,120]
[408363968,1773496259857,-15003.80900954,0.00047602,120]
[408363969,1773496259867,-158.69021899,0.00047602,120]
[408363970,1773496259876,-155.0,0.00047602,2]
[408363971,1773496259886,-155.0,0.00047602,2]
[408363972,1773496259897,-399.63954057,0.00047602,2]
[408363973,1773496259907,-581.30956391,0.00047602,5]
[408363974,1773496259916,-1635.70747917,0.00047602,10]
[408363975,1773496259927,-999.999999,0.00047602,120]
[408363976,1773496259938,-464.11484091,0.00047602,120]
[408363977,1773496259948,-220.22240039,0.00047602,91]
[408363978,1773496259957,-296.58770405,0.00047602,60]
[408363979,1773496259966,-1210.0,0.00047602,2]
[408363980,1773496259975,-718.5008163,0.00047602,2]
[408363981,1773496259984,-2046.15831149,0.00047602,5]
[408363982,1773496259995,-735.84604483,0.00047602,10]
[408363983,1773496260003,-351.00334504,0.00047602,30]
[408363984,1773496260013,-355.99873099,0.00047602,2]
[408363985,1773496260024,-643.52819977,0.00047602,6]
[408363986,1773496260034,-421.22328505,0.00047602,7]
[408363987,1773496260044,-957.19517127,0.00047602,30]
[408363988,1773496260054,-1301.8058397,0.00047602,30]
[408363989,1773496260064,-988.1139888,0.00047602,2]
[408363990,1773496260073,-1553.89345439,0.00047602,2]
[408363991,1773496260083,-1052.35626803,0.00047602,2]
[408363992,1773496260092,-501.52417238,0.00047602,2]
[408363993,1773496260101,-551.56561918,0.00047602,7]
[408363994,1773496260111,-434.70033827,0.00047602,2]
[408363995,1773496260119,-2011.23343097,0.00047602,2]
[408363996,1773496260128,-154.63339395,0.00047602,2]
[408363997,1773496260138,-1110.04187282,0.00047602,7]
[408363998,1773496260148,-1714.28956376,0.00047602,2]
[408363999,1773496260160,-1007.78285884,0.00047602,5]
[408364000,1773496260170,-152.26839054,0.00047602,30]
[408364001,1773496260179,-254.61669588,0.00047602,2]
[408364002,1773496260188,-500.0,0.00047602,2]
[408364003,1773496260199,-507.74712132,0.00047602,120]
[408364004,1773496260208,-1289.06742455,0.00047602,2]
[408364005,1773496260217,-166.04607923,0.00047602,60]
[408364006,1773496260229,-248.67007174,0.00047602,2]
[408364007,1773496260239,-150.75820925,0.00047602,30]
[408364008,1773496260249,-1064.47181451,0.00047602,2]
[408364009,1773496260258,-600.0,0.00047602,5]
[408364010,1773496260268,-557.25552274,0.00047602,2]
[408364011,1773496260277,-500.0,0.00047602,5]
[408364012,1773496260286,-600.24621381,0.00047602,2]
[408364013,1773496260296,-1340.40264417,0.00047602,2]
[408364014,1773496260305,-1221.0,0.00047602,4]
[408364015,1773496260314,-1000.0,0.00047602,10]
[408364016,1773496260324,-763.92539556,0.00047602,2]
[408364017,1773496260334,-188.07867592,0.00047602,2]
[408364018,1773496260343,-643.0,0.00047602,2]
[408364019,1773496260352,-2024.27330514,0.00047602,4]
[408364020,1773496260362,-991.78700488,0.00047602,2]
[408364021,1773496260371,-500.0,0.00047602,10]
[408364022,1773496260380,-585.56194714,0.00047602,2]
[408364023,1773496260390,-179.19599119,0.00047602,2]
[408364024,1773496260399,-158.78299221,0.00047602,2]
[408364025,1773496260408,-508.05167248,0.00047602,2]
[408364026,1773496260417,-550.0,0.00047602,2]
[408364027,1773496260426,-1076.08557573,0.00047602,7]
[408364028,1773496260435,-355.13482873,0.00047602,120]
[408364029,1773496260445,-233.80862131,0.00047602,2]
[408364030,1773496260455,-177.44162002,0.00047602,2]
[408364031,1773496260464,-499.9266616,0.00047602,3]
[408364032,1773496260473,-383.31120404,0.00047602,2]
[408364033,1773496260483,-1305.84052437,0.00047602,2]
[408364034,1773496260491,-1055.24592807,0.00047602,2]
[408364035,1773496260500,-482.71065294,0.00047602,7]
[408364036,1773496260510,-675.95746962,0.00047602,2]
[408364037,1773496260519,-151.89637531,0.00047602,120]
[408364038,1773496260528,-639.9998169,0.00047602,2]
[408364039,1773496260538,-225.75884853,0.00047602,5]
[408364040,1773496260547,-219.40605606,0.00047602,2]
[408364041,1773496260558,-355.98123681,0.00047602,120]
[408364042,1773496260567,-1089.79865783,0.00047602,2]
[408364043,1773496260577,-349.50405666,0.00047602,2]
[408364044,1773496260586,-1100.0,0.00047602,2]
[408364045,1773496260595,-931.91217331,0.00047602,2]
[408364046,1773496260604,-492.02037608,0.00047602,2]
[408364047,1773496260614,-618.35648368,0.00047602,2]
[408364048,1773496260623,-1621.73275423,0.00047602,2]
[408364049,1773496260633,-333.70554501,0.00047602,120]
[408364050,1773496260642,-1115.5087367,0.00047602,5]
[408364051,1773496260651,-560.20049164,0.00047602,2]
[408364052,1773496260661,-179.30957334,0.00047602,120]
[408364053,1773496260671,-1033.72018721,0.00047602,2]
[408364054,1773496260680,-372.72708275,0.00047602,2]
[408364055,1773496260690,-214.36010277,0.00047602,120]
[408364056,1773496260699,-1595.22662051,0.00047602,120]
[408364057,1773496260708,-170.96590017,0.00047602,30]
[408364058,1773496260718,-151.79121156,0.00047602,30]
[408364059,1773496260727,-181.88478042,0.00047602,120]
[408364060,1773496260736,-555.61722557,0.00047602,120]
[408364061,1773496260746,-1876.71762637,0.00047602,2]
[408364062,1773496260755,-353.52434074,0.00047602,2]
[408364063,1773496260764,-1499.1077283,0.00047602,30]
[408364064,1773496260773,-226.09650471,0.00047602,7]
[408364065,1773496260783,-1142.57881134,0.00047602,2]
[408364066,1773496260792,-279.21471123,0.00047602,2]
[408364067,1773496260802,-311.79879375,0.00047602,120]
[408364068,1773496260811,-627.88254244,0.00047602,7]
[408364069,1773496260820,-411.35414238,0.00047602,2]
[408364070,1773496260829,-207.30421389,0.00047602,2]
[408364071,1773496260847,-882.30344748,0.00047602,2]
[408364072,1773496260858,-1029.81379868,0.00047602,5]
[408364073,1773496260868,-289.00975947,0.00047602,2]